Workbook

Sheet 面试成绩、综合成绩
A1: 运城护理职业学院2023年公开招聘工作人员面试成绩、综合成绩
A3: 序号 | B3: 准考证号 | C3: 姓 名 | D3: 报考岗位 | E3: 笔试成绩 | F3: 面试成绩 | G3: 综合成绩 | H3: 排名 | I3: 备注
A4: 1 | B4: 20230100002 | C4: 杨雪莲 | D4: 教师1[2] | E4: 71.47 | F4: 78.71 | G4: =E4*0.6+F4*0.4 -> 74.37 | H4: 1
A5: 2 | B5: 20230200032 | C5: 张旭东 | D5: 教师1[2] | E5: 62.43 | F5: 78.56 | G5: =E5*0.6+F5*0.4 -> 68.88 | H5: 2
A6: 3 | B6: 20231000272 | C6: 王徐倩 | D6: 教师1[2] | E6: 58.99 | F6: 缺考
A7: 4 | C7: 梁书卿 | D7: 教师2[3] | F7: 78.97 | G7: =F7 -> 78.97 | H7: 1
A8: 5 | C8: 马爱婷 | D8: 教师2[3] | F8: 78.94 | G8: 78.94 | H8: 2
A9: 6 | C9: 赵思慧 | D9: 教师2[3] | F9: 78.78 | G9: 78.78 | H9: 3
A10: 7 | C10: 南京利 | D10: 教师2[3] | F10: 78.16 | G10: 78.16 | H10: 4
A11: 8 | C11: 王鑫 | D11: 教师2[3] | F11: 77.87 | G11: 77.87 | H11: 5
A12: 9 | C12: 贺力 | D12: 教师2[3] | F12: 77.14 | G12: 77.14 | H12: 6
A13: 10 | C13: 杨德波 | D13: 教师2[3] | F13: 缺考
A14: 11 | B14: 20231700483 | C14: 臧希 | D14: 教师3[2] | E14: 74.24 | F14: 79.43 | G14: =E14*0.6+F14*0.4 -> 76.32 | H14: 1
A15: 12 | B15: 20231300363 | C15: 闫荔琨 | D15: 教师3[2] | E15: 69.36 | F15: 77.26 | G15: 72.52 | H15: 2
A16: 13 | B16: 20231800513 | C16: 贾逸飞 | D16: 教师3[2] | E16: 66.34 | F16: 78.19 | G16: 71.08 | H16: 3
A17: 14 | B17: 20230100003 | C17: 王婵 | D17: 教师3[2] | E17: 63.63 | F17: 77.40 | G17: 69.14 | H17: 4
A18: 15 | B18: 20231000273 | C18: 史晓宇 | D18: 教师3[2] | E18: 61.76 | F18: 77.89 | G18: 68.21 | H18: 5
A19: 16 | B19: 20230400093 | C19: 张嘉钰 | D19: 教师3[2] | E19: 60.66 | F19: 77.89 | G19: 67.55 | H19: 6
A20: 17 | B20: 20230600155 | C20: 王梓丞 | D20: 教师4[1] | E20: 73.52 | F20: 77.67 | G20: 75.18 | H20: 1
A21: 18 | B21: 20231400395 | C21: 常梦娜 | D21: 教师4[1] | E21: 61.32 | F21: 79.00 | G21: 68.39 | H21: 2
A22: 19 | B22: 20230500125 | C22: 荆幸 | D22: 教师4[1] | E22: 70.19 | F22: 缺考
A23: 20 | B23: 20230100006 | C23: 叶慧 | D23: 教师7[2] | E23: 70.83 | F23: 78.15 | G23: =E23*0.6+F23*0.4 -> 73.76 | H23: 1
A24: 21 | B24: 20230600156 | C24: 张佳宁 | D24: 教师7[2] | E24: 65.98 | F24: 78.23 | G24: 70.88 | H24: 2
A25: 22 | B25: 20232400696 | C25: 雷亚江 | D25: 教师7[2] | E25: 65.01 | F25: 77.41 | G25: 69.97 | H25: 3
A26: 23 | B26: 20231700486 | C26: 魏宁 | D26: 教师7[2] | E26: 63.77 | F26: 77.38 | G26: 69.21 | H26: 4
A27: 24 | B27: 20231800516 | C27: 李凯文 | D27: 教师7[2] | E27: 62.01 | F27: 77.48 | G27: 68.20 | H27: 5
A28: 25 | B28: 20230200036 | C28: 杨红 | D28: 教师7[2] | E28: 60.29 | F28: 缺考
A29: 26 | B29: 20232700806 | C29: 梅韵 | D29: 教师8[1] | E29: 78.90 | F29: 78.59 | G29: =E29*0.6+F29*0.4 -> 78.78 | H29: 1
A30: 27 | B30: 20231900542 | C30: 黄欢欢 | D30: 教师8[1] | E30: 75.55 | F30: 78.20 | G30: =E30*0.6+F30*0.4 -> 76.61 | H30: 2
A31: 28 | B31: 20231300362 | C31: 王锌蓉 | D31: 教师8[1] | E31: 76.09 | F31: 缺考
A32: 29 | C32: 张震 | D32: 教师9[1] | F32: 79.56 | G32: =F32 -> 79.56 | H32: 1
A33: 30 | C33: 苏亚亚 | D33: 教师9[1] | F33: 78.53 | G33: =F33 -> 78.53 | H33: 2
A34: 31 | C34: 钟琳 | D34: 教师9[1] | F34: 缺考
A35: 32 | B35: 20232500729 | C35: 周晨刚 | D35: 教师10[1] | E35: 76.28 | F35: 78.63 | G35: =E35*0.6+F35*0.4 -> 77.22 | H35: 1
A36: 33 | B36: 20232800827 | C36: 董浩 | D36: 教师10[1] | E36: 73.67 | F36: 79.18 | G36: =E36*0.6+F36*0.4 -> 75.87 | H36: 2
A37: 34 | B37: 20232500737 | C37: 李少茹 | D37: 教师10[1] | E37: 72.90 | F37: 缺考
A38: 35 | B38: 20230300071 | C38: 杨舒淇 | D38: 实训指导教师1[1] | E38: 76.52 | F38: 79.48 | G38: =E38*0.6+F38*0.4 -> 77.70 | H38: 1
A39: 36 | B39: 20230800221 | C39: 杨倩倩 | D39: 实训指导教师1[1] | E39: 74.08 | F39: 缺考
A40: 37 | B40: 20230700191 | C40: 赵晓宇 | D40: 实训指导教师1[1] | E40: 73.44 | F40: 缺考
A41: 38 | B41: 20230700192 | C41: 宋世英 | D41: 实训指导教师2[1] | E41: 64.82 | F41: 78.47 | G41: =E41*0.6+F41*0.4 -> 70.28 | H41: 1
A42: 39 | B42: 20230200042 | C42: 董珂君 | D42: 实训指导教师2[1] | E42: 63.21 | F42: 78.45 | G42: =E42*0.6+F42*0.4 -> 69.31 | H42: 2
A43: 40 | B43: 20230500132 | C43: 闫兆祥 | D43: 实训指导教师2[1] | E43: 71.74 | F43: 缺考
A44: 41 | B44: 20231100314 | C44: 何文佳 | D44: 实训指导教师3[1] | E44: 75.05 | F44: 79.68 | G44: =E44*0.6+F44*0.4 -> 76.90 | H44: 1
A45: 42 | B45: 20232300680 | C45: 南瑞 | D45: 实训指导教师3[1] | E45: 72.70 | F45: 77.79 | G45: =E45*0.6+F45*0.4 -> 74.74 | H45: 2
A46: 43 | B46: 20230300074 | C46: 任沁媛 | D46: 实训指导教师3[1] | E46: 65.71 | F46: 78.66 | G46: =E46*0.6+F46*0.4 -> 70.89 | H46: 3
A47: 44 | B47: 20230700195 | C47: 柳璇 | D47: 实训指导教师4[2] | E47: 78.22 | F47: 79.77 | G47: =E47*0.6+F47*0.4 -> 78.84 | H47: 1
A48: 45 | B48: 20230900255 | C48: 袁天舒 | D48: 实训指导教师4[2] | E48: 73.27 | F48: 79.63 | G48: 75.81 | H48: 2
A49: 46 | B49: 20231400405 | C49: 赵泽昕 | D49: 实训指导教师4[2] | E49: 68.32 | F49: 77.95 | G49: 72.17 | H49: 3
A50: 47 | B50: 20230500135 | C50: 李英辉 | D50: 实训指导教师4[2] | E50: 65.61 | F50: 79.35 | G50: 71.11 | H50: 4
A51: 48 | B51: 20230800225 | C51: 焦巧换 | D51: 实训指导教师4[2] | E51: 60.43 | F51: 78.66 | G51: 67.72 | H51: 5
A52: 49 | B52: 20230300075 | C52: 王绍旭 | D52: 实训指导教师4[2] | E52: 60.66 | F52: 77.49 | G52: 67.39 | H52: 6
A53: 50 | B53: 20230200047 | C53: 王勇 | D53: 实训指导教师5[1] | E53: 77.33 | F53: 78.22 | G53: 77.69 | H53: 1
A54: 51 | B54: 20231200347 | C54: 杨亚清 | D54: 实训指导教师5[1] | E54: 74.94 | F54: 78.28 | G54: 76.28 | H54: 2
A55: 52 | B55: 20230500137 | C55: 刘嘉琪 | D55: 实训指导教师5[1] | E55: 74.06 | F55: 79.29 | G55: 76.15 | H55: 3
A56: 53 | B56: 20230700198 | C56: 安泽华 | D56: 实训指导教师6[1] | E56: 76.88 | F56: 77.66 | G56: 77.19 | H56: 1
A57: 54 | B57: 20230500138 | C57: 张波 | D57: 实训指导教师6[1] | E57: 60.39 | F57: 76.84 | G57: 66.97 | H57: 2
A58: 55 | B58: 20231200348 | C58: 赵李兵 | D58: 实训指导教师6[1] | E58: 56.61 | F58: 76.64 | G58: 64.62 | H58: 3
A59: 56 | B59: 20230700200 | C59: 朱柯柯 | D59: 实训指导教师7[2] | E59: 73.31 | F59: 77.74 | G59: =E59*0.6+F59*0.4 -> 75.08 | H59: 1
A60: 57 | B60: 20230300080 | C60: 尹欣雨 | D60: 实训指导教师7[2] | E60: 65.92 | F60: 78.36 | G60: =E60*0.6+F60*0.4 -> 70.90 | H60: 2
A61: 58 | B61: 20230900260 | C61: 王景阳 | D61: 实训指导教师7[2] | E61: 64.74 | F61: 79.94 | G61: =E61*0.6+F61*0.4 -> 70.82 | H61: 3
A62: 59 | B62: 20230800230 | C62: 张展毓 | D62: 实训指导教师7[2] | E62: 64.35 | F62: 77.50 | G62: =E62*0.6+F62*0.4 -> 69.61 | H62: 4
A63: 60 | B63: 20230500140 | C63: 刘钰青 | D63: 实训指导教师7[2] | E63: 57.18 | F63: 78.29 | G63: =E63*0.6+F63*0.4 -> 65.62 | H63: 5
A64: 61 | B64: 20231000290 | C64: 宋亚茹 | D64: 实训指导教师7[2] | E64: 60.00 | F64: 缺考
A65: 62 | C65: 韩香 | D65: 专职辅导员1[3] | F65: 77.83 | G65: =F65 -> 77.83 | H65: 1
A66: 63 | C66: 陕弋华 | D66: 专职辅导员1[3] | F66: 77.78 | G66: =F66 -> 77.78 | H66: 2
A67: 64 | C67: 吴欣澎 | D67: 专职辅导员1[3] | F67: 77.66 | G67: =F67 -> 77.66 | H67: 3
A68: 65 | C68: 杨玉霖 | D68: 专职辅导员1[3] | F68: 缺考
A69: 66 | C69: 张桐 | D69: 专职辅导员2[2] | F69: 77.54 | G69: =F69 -> 77.54 | H69: 1
A70: 67 | C70: 柴世凡 | D70: 专职辅导员2[2] | F70: 76.76 | G70: 76.76 | H70: 2
A71: 68 | C71: 孙润哲 | D71: 专职辅导员2[2] | F71: 76.44 | G71: 76.44 | H71: 3
A72: 69 | B72: 20230300081 | C72: 翟伟创 | D72: 专职辅导员3[2] | E72: 79.59 | F72: 77.23 | G72: =E72*0.6+F72*0.4 -> 78.65 | H72: 1
A73: 70 | B73: 20230400111 | C73: 晁启人 | D73: 专职辅导员3[2] | E73: 69.73 | F73: 77.77 | G73: =E73*0.6+F73*0.4 -> 72.95 | H73: 2
A74: 71 | B74: 20230500141 | C74: 李中杰 | D74: 专职辅导员3[2] | E74: 76.98 | F74: 缺考
A75: 72 | B75: 20230200051 | C75: 闫煜 | D75: 专职辅导员3[2] | E75: 63.81 | F75: 缺考
A76: 73 | B76: 20230900269 | C76: 李帅 | D76: 专职辅导员4[2] | E76: 77.83 | F76: 77.28 | G76: =E76*0.6+F76*0.4 -> 77.61 | H76: 1
A77: 74 | B77: 20232900863 | C77: 燕莹 | D77: 专职辅导员4[2] | E77: 75.98 | F77: 77.39 | G77: 76.54 | H77: 2
A78: 75 | B78: 20230100023 | C78: 梁晓雪 | D78: 专职辅导员4[2] | E78: 75.88 | F78: 76.81 | G78: 76.25 | H78: 3
A79: 76 | B79: 20230500143 | C79: 史小小 | D79: 专职辅导员4[2] | E79: 75.92 | F79: 76.58 | G79: 76.18 | H79: 4
A80: 77 | B80: 20232900869 | C80: 候芳竹 | D80: 专职辅导员4[2] | E80: 74.78 | F80: 76.70 | G80: 75.55 | H80: 5
A81: 78 | B81: 20231900564 | C81: 刘鑫 | D81: 专职辅导员5[1] | E81: 79.59 | F81: 76.98 | G81: 78.55 | H81: 1
A82: 79 | B82: 20231200354 | C82: 张喜超 | D82: 专职辅导员5[1] | E82: 76.42 | F82: 77.93 | G82: 77.02 | H82: 2
A83: 80 | B83: 20230100024 | C83: 王祎琛 | D83: 专职辅导员5[1] | E83: 71.64 | F83: 缺考
A84: 81 | B84: 20233100901 | C84: 薛惠心 | D84: 专职辅导员6[1] | E84: 82.01 | F84: 76.95 | G84: =E84*0.6+F84*0.4 -> 79.99 | H84: 1
A85: 82 | B85: 20232400697 | C85: 柴武霞 | D85: 专职辅导员6[1] | E85: 80.23 | F85: 77.25 | G85: =E85*0.6+F85*0.4 -> 79.04 | H85: 2
A86: 83 | B86: 20232200640 | C86: 赵平 | D86: 专职辅导员6[1] | E86: 80.23 | F86: 77.07 | G86: =E86*0.6+F86*0.4 -> 78.97 | H86: 3
A87: 84 | B87: 20230900241 | C87: 田敬莹 | D87: 专职辅导员6[1] | E87: 81.93 | F87: 缺考
